bitfinex/quotes_BTCUSD_20250205
["timestamp","ask_amount","ask_price","bid_price","bid_amount"]
[1738788791988,0.0001067,97377.0,97376.0,0.87747971]
[1738788792150,0.0001067,97377.0,97376.0,0.86472133]
[1738788796333,0.0001067,97377.0,97376.0,0.84172133]
[1738788796723,0.0001067,97377.0,97376.0,0.80974565]
[1738788797036,0.0001067,97377.0,97376.0,0.83274565]
[1738788797241,0.0001067,97377.0,97376.0,0.86462157]
[1738788800389,0.0001067,97377.0,97376.0,0.57684565]
[1738788800609,0.0001067,97377.0,97376.0,0.474342]
[1738788801012,0.0001067,97377.0,97376.0,0.3203]
[1738788803743,0.0001067,97377.0,97373.0,0.154046]
[1738788805098,0.0001067,97377.0,97370.0,0.2054]
[1738788805297,0.0001067,97377.0,97373.0,0.154046]
[1738788805498,0.0001067,97377.0,97370.0,0.12509662]
[1738788806825,0.0001067,97377.0,97370.0,0.27914762]
[1738788807021,0.0001067,97377.0,97370.0,0.12509662]
[1738788807232,0.0001067,97377.0,97376.0,0.154042]
[1738788807377,0.0001067,97377.0,97376.0,0.15506877]
[1738788807619,0.0001067,97377.0,97376.0,0.154042]
[1738788807829,0.0001067,97377.0,97372.0,0.205397]
[1738788808028,0.0001067,97377.0,97376.0,0.154042]
[1738788808237,0.0001067,97377.0,97376.0,0.25757244]
[1738788808435,0.0001067,97377.0,97376.0,0.40654565]
[1738788810452,0.0001067,97377.0,97376.0,0.15]
[1738788810654,0.0001067,97377.0,97376.0,0.304042]
[1738788811549,0.0001067,97377.0,97376.0,0.15]
[1738788811970,0.0001067,97377.0,97376.0,0.304042]
[1738788812890,0.0001067,97377.0,97376.0,0.15]
[1738788813092,0.0001067,97377.0,97376.0,0.304042]
[1738788813321,0.0001067,97377.0,97371.0,0.00022428]
[1738788814165,0.205389,97376.0,97371.0,0.00022428]
[1738788814365,0.154048,97372.0,97371.0,0.00022428]
[1738788814644,0.15606466,97372.0,97371.0,0.00022428]
[1738788814845,0.495784,97372.0,97371.0,0.00022428]
[1738788815092,0.57563408,97372.0,97371.0,0.00022428]
[1738788815293,0.46023839,97372.0,97371.0,0.00022428]
[1738788816922,0.46785972,97372.0,97371.0,0.00022428]
[1738788817276,0.05613799,97372.0,97371.0,0.00022428]
[1738788817478,0.00963799,97372.0,97371.0,0.00022428]
[1738788817687,0.16368599,97372.0,97371.0,0.00022428]
[1738788818505,0.15606466,97372.0,97371.0,0.00022428]
[1738788819329,0.25856831,97372.0,97371.0,0.00022428]
[1738788820705,0.00201666,97372.0,97371.0,0.00022428]
[1738788820872,0.00201666,97372.0,97371.0,0.53290034]
[1738788821100,0.0001067,97377.0,97376.0,0.304042]
[1738788821212,0.0001067,97377.0,97376.0,0.40654565]
[1738788821635,0.0001067,97377.0,97376.0,0.40623972]
[1738788830572,0.0001067,97377.0,97376.0,0.41677729]
[1738788831022,0.0001067,97377.0,97376.0,0.41700178]
[1738788831196,0.0001067,97377.0,97376.0,0.15022449]
[1738788831352,0.0001067,97377.0,97376.0,0.30426649]
[1738788832043,0.0001067,97377.0,97376.0,0.40677014]
[1738788833584,0.0001067,97377.0,97376.0,0.15022449]
[1738788833791,0.0001067,97377.0,97376.0,0.30426649]
[1738788837272,0.0001067,97377.0,97376.0,0.40677014]
[1738788837659,0.0001067,97377.0,97376.0,0.58948758]
[1738788838103,0.0001067,97377.0,97376.0,0.5995941]
[1738788840255,6e-07,97378.0,97376.0,0.5995941]
[1738788840486,6e-07,97378.0,97377.0,0.4624876]
[1738788840642,6e-07,97378.0,97377.0,0.46146109]
[1738788840838,6e-07,97378.0,97377.0,0.53976109]
[1738788841335,0.0001069,97396.0,97377.0,0.53976109]
[1738788841336,0.0001069,97396.0,97395.0,0.382312]
[1738788841621,9e-07,97402.0,97401.0,0.304002]
[1738788841830,9e-07,97402.0,97401.0,0.47550565]
[1738788842032,9e-07,97402.0,97401.0,0.58418263]
[1738788842246,9e-07,97402.0,97401.0,0.59418263]
[1738788843413,9e-07,97402.0,97401.0,0.60423969]
[1738788845361,9e-07,97402.0,97401.0,0.92453969]
[1738788846037,9e-07,97402.0,97401.0,0.89266271]
[1738788846662,9e-07,97402.0,97401.0,0.88266271]
[1738788847411,9e-07,97402.0,97401.0,0.90310608]
[1738788848055,9e-07,97402.0,97401.0,0.91310608]
[1738788848826,9e-07,97402.0,97401.0,0.92310608]
[1738788849643,9e-07,97402.0,97401.0,0.91310608]
[1738788849856,9e-07,97402.0,97401.0,0.92310608]
[1738788850262,9e-07,97402.0,97401.0,0.91310608]
[1738788850461,9e-07,97402.0,97401.0,0.89010608]
[1738788850664,0.0001069,97442.0,97441.0,0.153939]
[1738788850885,0.0001069,97442.0,97441.0,0.27903562]
[1738788851766,0.0001069,97442.0,97441.0,0.53153927]
[1738788851981,0.0272126,97459.0,97458.0,0.153912]
[1738788852289,0.0272126,97459.0,97458.0,0.38151227]
[1738788852290,0.0291631,97459.0,97458.0,0.38151227]
[1738788852512,0.0272126,97459.0,97458.0,0.38151227]
[1738788852956,0.0272126,97459.0,97458.0,0.53151227]
[1738788853387,0.0272126,97459.0,97458.0,0.63021227]
[1738788853814,6e-07,97459.0,97458.0,0.64060687]
[1738788856591,6e-07,97459.0,97458.0,0.69040687]
[1738788858349,6e-07,97459.0,97458.0,0.64060687]
[1738788858933,6e-07,97459.0,97458.0,0.61760687]
[1738788860562,0.00577729,97465.0,97459.0,0.15]
[1738788860770,0.00577729,97465.0,97464.0,0.303902]
[1738788860973,0.00577729,97465.0,97464.0,0.40640565]
[1738788864581,0.00577729,97465.0,97464.0,0.303902]
[1738788864857,0.00577729,97465.0,97464.0,0.153902]
[1738788865223,0.08867729,97465.0,97464.0,0.153902]
[1738788867013,0.205203,97464.0,97434.0,0.15395]
[1738788867162,0.08867729,97465.0,97444.0,0.564426]
[1738788867386,0.00198346,97463.0,97443.0,0.08199704]
[1738788867693,0.00178552,97464.0,97460.0,0.153907]
[1738788867893,0.08867729,97465.0,97460.0,0.153907]
[1738788868104,0.00198227,97464.0,97460.0,0.153907]
[1738788868512,0.00198227,97464.0,97458.0,0.00022428]
[1738788868713,0.15588627,97464.0,97458.0,0.00022428]
[1738788868928,0.153904,97463.0,97458.0,0.00022428]
[1738788869163,0.00198227,97464.0,97458.0,0.15413528]
[1738788869327,0.00178317,97462.0,97458.0,0.00022428]
[1738788869530,0.00178358,97463.0,97458.0,0.20543828]
[1738788869771,0.08878409,97465.0,97458.0,0.00022428]
[1738788869983,0.15391,97459.0,97458.0,0.00022428]
[1738788870186,0.30531365,97459.0,97458.0,0.00022428]
[1738788870390,0.30729359,97459.0,97458.0,0.00022428]
[1738788871128,0.31490932,97459.0,97458.0,0.00022428]
[1738788872001,0.32714646,97459.0,97458.0,0.00022428]
[1738788873021,0.40994646,97459.0,97458.0,0.00022428]
[1738788873250,0.40994646,97459.0,97404.0,0.205328]
[1738788873251,0.153961,97428.0,97420.0,0.153971]
[1738788873475,0.153964,97425.0,97417.0,0.153975]
[1738788873676,0.153964,97425.0,97418.0,0.15]
[1738788873950,0.00176591,97425.0,97419.0,0.153972]
[1738788874322,0.153971,97421.0,97404.0,0.21577206]
[1738788874511,0.00175415,97420.0,97415.0,0.153979]
[1738788874883,0.00175415,97420.0,97416.0,0.153978]
[1738788875103,0.00175415,97420.0,97411.0,0.15]
[1738788875104,0.153973,97420.0,97411.0,0.15]
[1738788875287,0.0017617,97419.0,97408.0,0.22588891]
[1738788875417,0.0017617,97419.0,97414.0,0.153981]
[1738788875654,0.0017617,97419.0,97408.0,0.22588891]
[1738788875655,0.0017617,97419.0,97409.0,0.153989]
[1738788875871,0.153979,97416.0,97409.0,0.153989]
[1738788876320,0.00195563,97415.0,97408.0,7.222e-05]
[1738788876515,0.205291,97423.0,97411.0,0.153986]
[1738788876775,0.153978,97417.0,97411.0,0.153986]
[1738788877146,0.205282,97427.0,97408.0,7.222e-05]
[1738788877147,0.00195608,97416.0,97408.0,7.222e-05]
[1738788877321,0.205301,97418.0,97408.0,7.222e-05]
[1738788877534,0.153989,97409.0,97408.0,7.222e-05]
[1738788877738,0.2341419,97409.0,97408.0,7.222e-05]
[1738788877946,0.38184555,97409.0,97408.0,7.222e-05]
[1738788879599,0.38943983,97409.0,97408.0,7.222e-05]
[1738788880396,0.00954718,97409.0,97408.0,0.15406322]
[1738788880795,0.00759428,97409.0,97408.0,0.15406322]
[1738788881496,0.00759428,97409.0,97408.0,7.222e-05]
[1738788881637,0.205286,97425.0,97408.0,7.222e-05]
[1738788881836,0.00165435,97409.0,97408.0,0.15406322]
[1738788882040,0.153989,97409.0,97408.0,7.222e-05]
[1738788882241,0.15582934,97409.0,97408.0,7.222e-05]
[1738788883968,0.00184034,97409.0,97408.0,0.15406322]
[1738788884420,0.153982,97414.0,97409.0,0.153989]
[1738788884761,0.153989,97409.0,97408.0,7.222e-05]
[1738788884967,0.00184198,97413.0,97408.0,7.222e-05]
[1738788885287,0.15397,97422.0,97416.0,0.153977]
[1738788885487,0.153966,97425.0,97419.0,0.153973]
[1738788885691,0.153966,97425.0,97410.0,0.205317]
[1738788885692,0.205291,97423.0,97409.0,0.359308]
[1738788885890,0.10250365,97426.0,97412.0,0.205311]
[1738788886217,0.10250365,97426.0,97408.0,0.12516884]
[1738788886429,0.10250365,97426.0,97414.0,0.15398]
[1738788886592,0.205288,97424.0,97414.0,0.15398]
[1738788886792,0.153973,97420.0,97412.0,0.205312]
[1738788887040,0.153964,97425.0,97408.0,0.12516884]
[1738788887241,0.30778765,97426.0,97416.0,0.153977]
[1738788887426,0.153971,97421.0,97415.0,0.15398]
[1738788887634,0.153973,97420.0,97415.0,0.153979]
[1738788887791,0.153969,97423.0,97417.0,0.153975]
[1738788888193,0.07002,97445.0,97409.0,0.205319]
[1738788888401,0.00166457,97422.0,97421.0,0.15397]
[1738788888602,0.359175,97445.0,97429.0,0.153956]
[1738788888810,0.2128312,97443.0,97421.0,0.12509662]
[1738788889006,0.153954,97432.0,97421.0,0.12509662]
[1738788889281,0.153954,97432.0,97423.0,0.20529]
[1738788889424,0.00166885,97431.0,97422.0,0.205292]
[1738788889770,0.00166885,97431.0,97423.0,0.153967]
[1738788889771,0.153956,97430.0,97423.0,0.153967]
[1738788890116,0.00166804,97429.0,97423.0,0.153967]
[1738788890362,0.00166804,97429.0,97421.0,0.12509662]
[1738788890567,0.205252,97441.0,97421.0,0.12509662]
[1738788890797,0.153954,97432.0,97421.0,0.27906562]
[1738788890944,0.205267,97435.0,97421.0,0.12509662]
[1738788891146,0.153954,97432.0,97421.0,0.27906662]
[1738788891405,0.15562385,97431.0,97421.0,0.12509662]
[1738788891571,0.153957,97430.0,97424.0,0.153964]
[1738788891752,0.153957,97430.0,97422.0,0.205292]
[1738788891967,0.00166804,97429.0,97422.0,0.205292]
[1738788892157,0.00166804,97429.0,97424.0,0.153965]
[1738788892439,0.00166804,97429.0,97421.0,0.12509662]
[1738788892685,0.00166804,97429.0,97427.0,0.15396]
[1738788892880,0.153954,97432.0,97425.0,0.153963]
[1738788893062,0.00166817,97428.0,97421.0,0.12509662]
[1738788893291,0.0011,97430.0,97425.0,0.153964]
[1738788893495,0.0011,97430.0,97422.0,0.153969]
[1738788893696,0.00166858,97429.0,97423.0,0.20529]
[1738788893898,0.00166858,97429.0,97424.0,0.153964]
[1738788894132,0.20694758,97429.0,97421.0,0.27906562]
[1738788894265,0.153959,97428.0,97422.0,0.153968]
[1738788894471,0.153959,97428.0,97423.0,0.153967]
[1738788894727,0.00166774,97427.0,97423.0,0.153967]
[1738788895358,0.00166774,97427.0,97421.0,0.12509662]
[1738788895576,0.00166774,97427.0,97422.0,0.153969]
[1738788895858,0.153967,97423.0,97421.0,0.12509662]
[1738788896241,0.00185078,97422.0,97411.0,0.12509662]
[1738788896459,0.153985,97412.0,97411.0,0.12509662]
[1738788897003,0.153988,97410.0,97409.0,0.00022428]
[1738788897150,0.31811165,97410.0,97409.0,0.00022428]
[1738788897481,0.238609,97409.0,97369.0,0.28724328]
[1738788897688,0.21562,97402.0,97369.0,0.28724328]
[1738788897847,0.34112365,97402.0,97369.0,0.28724328]
[1738788898048,0.49277363,97402.0,97369.0,0.28724328]
[1738788898299,0.15404,97377.0,97369.0,0.28724328]
[1738788898887,0.15404,97377.0,97371.0,0.00022428]
[1738788899064,0.15567976,97377.0,97371.0,0.00022428]
[1738788899705,0.25818341,97377.0,97371.0,0.00022428]
[1738788900531,0.10414341,97377.0,97371.0,0.00022428]
[1738788900731,0.00163976,97377.0,97375.0,0.154043]
[1738788901018,0.00163976,97377.0,97371.0,0.00022428]
[1738788901019,0.25654365,97377.0,97371.0,0.00022428]
[1738788901376,0.24814948,97377.0,97371.0,0.00022428]
[1738788901968,0.27876193,97377.0,97371.0,0.00022428]
[1738788902178,0.37042336,97377.0,97371.0,0.00022428]
[1738788902934,0.36036193,97377.0,97371.0,0.00022428]
[1738788903143,1.86036193,97377.0,97371.0,0.00022428]
[1738788903659,0.36036193,97377.0,97371.0,0.00022428]
[1738788906493,0.25576193,97377.0,97371.0,0.00022428]
[1738788906648,0.02133306,97377.0,97371.0,0.00022428]
[1738788906857,0.02133306,97377.0,97376.0,0.15426649]
[1738788906858,0.01980723,97377.0,97376.0,0.15426649]
[1738788907261,0.01980723,97377.0,97376.0,0.00022449]
[1738788907614,0.17395413,97377.0,97376.0,0.00022449]
[1738788907767,0.00771935,97377.0,97376.0,0.15426649]
[1738788908365,0.0001069,97377.0,97376.0,0.15426649]
[1738788909375,0.0001069,97377.0,97376.0,0.35868992]
[1738788909559,0.0001069,97377.0,97376.0,0.35766311]
[1738788912105,0.0012069,97377.0,97376.0,0.35766311]
[1738788913530,0.0012069,97377.0,97376.0,0.00022449]
[1738788913714,0.0012069,97377.0,97376.0,0.15426649]
[1738788914332,0.0012069,97377.0,97376.0,0.40779707]
[1738788914604,0.0012069,97377.0,97376.0,0.53517014]
[1738788917795,0.0012069,97377.0,97376.0,0.87847014]
[1738788917956,0.0012069,97377.0,97376.0,0.88382178]
[1738788919234,0.0012069,97377.0,97376.0,0.89429644]
[1738788921679,0.0012069,97377.0,97376.0,0.89204107]
[1738788923342,0.0012069,97377.0,97376.0,0.91504107]
[1738788923882,0.0012069,97377.0,97376.0,0.94686559]
[1738788925440,0.0012069,97377.0,97376.0,0.91504107]
[1738788925647,0.0012069,97377.0,97376.0,0.94687249]
[1738788925803,0.0012069,97377.0,97376.0,0.89204107]
[1738788932186,0.0012069,97377.0,97376.0,0.91504107]
[1738788934565,9e-07,97377.0,97376.0,0.91504107]
[1738788937701,9e-07,97377.0,97376.0,0.84264107]
[1738788937902,9e-07,97377.0,97376.0,0.47456649]
[1738788938306,9e-07,97377.0,97376.0,0.62456649]
[1738788940335,9e-07,97377.0,97376.0,0.30426649]
[1738788941899,0.0001078,97377.0,97376.0,0.30426649]
[1738788943861,0.0001078,97377.0,97376.0,0.00022449]
[1738788943862,0.1541478,97377.0,97376.0,0.00022449]
[1738788944203,0.0001078,97377.0,97376.0,0.00022449]
[1738788944843,0.0001078,97377.0,97376.0,0.15426649]
[1738788949312,0.0001078,97377.0,97376.0,0.40779698]
[1738788949630,0.0001078,97377.0,97376.0,0.40677014]
[1738788950403,0.0001078,97377.0,97376.0,0.41688096]
[1738788953984,0.0001078,97377.0,97376.0,0.43988096]
[1738788954192,0.0001078,97377.0,97376.0,0.47718167]
[1738788954970,0.0001078,97377.0,97376.0,0.55568167]
[1738788955346,0.0001078,97377.0,97376.0,0.87598167]
[1738788955818,0.07810484,97412.0,97404.0,0.205328]
[1738788955992,0.07810484,97412.0,97408.0,0.15399]
[1738788956229,0.07810484,97412.0,97404.0,0.12509662]
[1738788956230,0.0455,97413.0,97404.0,0.12509662]
[1738788956427,0.0455,97413.0,97408.0,0.205321]
[1738788956629,0.0455,97413.0,97410.0,0.153987]
[1738788957078,0.0455,97413.0,97411.0,0.153986]
[1738788957279,0.0455,97413.0,97410.0,0.153988]
[1738788957719,0.0455,97413.0,97408.0,0.205321]
[1738788957885,0.0455,97413.0,97409.0,0.153988]
[1738788958085,0.0455,97413.0,97404.0,0.12509662]
[1738788958474,0.0455,97413.0,97411.0,0.153986]
[1738788958772,0.0455,97413.0,97409.0,0.153988]
[1738788959177,0.0455,97413.0,97410.0,0.153987]
[1738788959596,0.0455,97413.0,97404.0,0.12509662]
[1738788959899,0.0455,97413.0,97409.0,0.153989]
[1738788960266,0.0455,97413.0,97404.0,0.12509662]
[1738788960725,0.153985,97412.0,97404.0,0.12509662]
[1738788960856,0.0455,97413.0,97408.0,0.153991]
[1738788961287,0.0455,97413.0,97378.0,0.12509662]
[1738788961444,0.205338,97400.0,97389.0,0.15]
[1738788961643,0.154014,97394.0,97388.0,0.154022]
[1738788961843,0.0455,97413.0,97376.0,0.5294672]
[1738788961844,0.0755,97403.0,97376.0,0.5294672]
[1738788962045,0.154,97402.0,97396.0,0.154009]
[1738788962326,0.154002,97401.0,97394.0,0.154012]
[1738788962556,0.076,97410.0,97380.0,0.14159344]
[1738788962731,0.153988,97410.0,97409.0,0.01]
[1738788963495,0.16162456,97410.0,97409.0,0.01]
[1738788964558,0.26412821,97410.0,97409.0,0.01]
[1738788964896,0.26412821,97410.0,97409.0,0.01022428]
[1738788966767,0.33982821,97410.0,97409.0,0.01022428]
[1738788966971,0.56232821,97410.0,97409.0,0.01022428]
[1738788968612,0.57232821,97410.0,97409.0,0.01022428]
[1738788969017,0.154034,97381.0,97380.0,0.08199704]
[1738788969426,0.15404,97377.0,97376.0,0.01022449]
[1738788970002,0.154037,97380.0,97376.0,0.01022449]
[1738788970280,0.154038,97379.0,97376.0,0.01022449]
[1738788970499,0.10250365,97389.0,97376.0,0.01022449]
[1738788970705,0.0498,97393.0,97376.0,0.01022449]
[1738788970860,0.075,97405.0,97376.0,0.01022449]
[1738788970861,0.154,97402.0,97395.0,0.154011]
[1738788971061,0.0475,97405.0,97394.0,0.154012]
[1738788971261,0.0475,97405.0,97379.0,0.205383]
[1738788971475,0.0475,97405.0,97380.0,0.30788365]
[1738788971672,0.201497,97405.0,97398.0,0.154006]
[1738788972000,0.201497,97405.0,97381.0,0.00102673]
[1738788972001,0.21296647,97404.0,97381.0,0.00102673]
[1738788972297,0.21296647,97404.0,97394.0,0.154012]
[1738788972298,0.14159344,97400.0,97394.0,0.154012]
[1738788972497,0.14159344,97400.0,97382.0,0.10250365]
[1738788972716,0.154,97403.0,97382.0,0.10250365]
[1738788972995,0.154004,97400.0,97394.0,0.154013]
[1738788973359,0.21296747,97403.0,97397.0,0.154008]
[1738788973561,0.00763547,97403.0,97382.0,0.10250365]
[1738788973768,0.00763547,97403.0,97402.0,0.154]
[1738788975010,0.14159344,97420.0,97410.0,0.153988]
[1738788975452,0.205305,97416.0,97405.0,0.153995]
[1738788975629,0.205305,97416.0,97388.0,0.0802]
[1738788975630,0.1551908,97413.0,97388.0,0.0802]
[1738788975830,0.14159344,97410.0,97406.0,0.153994]
[1738788976034,0.1551908,97413.0,97406.0,0.153994]
[1738788976035,0.0012068,97413.0,97406.0,0.153994]
[1738788976508,0.00763639,97410.0,97406.0,0.153994]
[1738788976899,0.00763639,97410.0,97409.0,0.153989]
[1738788977539,0.00763639,97412.0,97411.0,0.153986]
[1738788979305,0.0012068,97413.0,97412.0,0.153985]
[1738788979516,0.0012068,97413.0,97409.0,0.15421328]
[1738788979517,0.0012068,97413.0,97409.0,0.00022428]
[1738788980505,0.0001068,97413.0,97409.0,0.00022428]
[1738788980724,0.00774319,97413.0,97409.0,0.15421228]
[1738788980949,0.00774319,97413.0,97409.0,0.20554328]
[1738788981175,0.00774319,97413.0,97409.0,0.00022428]
[1738788981414,0.00774319,97413.0,97412.0,0.153985]
[1738788982563,0.0001068,97413.0,97412.0,0.153985]
[1738788986107,0.0001068,97413.0,97409.0,0.00022428]
[1738788986637,0.153988,97410.0,97409.0,0.00022428]
[1738788987427,0.0001068,97413.0,97409.0,0.00022428]
[1738788987640,0.153988,97410.0,97409.0,0.00022428]
[1738788987864,0.0001068,97413.0,97412.0,0.153985]
[1738788988357,0.0001068,97413.0,97409.0,0.00022428]
[1738788988640,0.153988,97410.0,97409.0,0.00022428]
[1738788988845,0.0001068,97413.0,97409.0,0.00022428]
[1738788989082,0.153988,97410.0,97409.0,0.00022428]
[1738788989269,0.25649165,97410.0,97409.0,0.00022428]
[1738788989873,0.46811165,97410.0,97409.0,0.00022428]
[1738788990285,0.49111165,97410.0,97409.0,0.00022428]
[1738788991059,0.49875085,97410.0,97409.0,0.00022428]
[1738788991261,0.49985085,97410.0,97409.0,0.00022428]
[1738788992041,0.26523085,97410.0,97409.0,0.00022428]
[1738788992712,0.1627272,97410.0,97409.0,0.00022428]
[1738788997090,0.0087392,97410.0,97409.0,0.15421328]
[1738788997317,0.0087392,97410.0,97409.0,0.00022428]
[1738788998324,0.0011,97410.0,97409.0,0.00022428]
[1738788998671,0.0011,97410.0,97409.0,0.15421328]
[1738788999077,0.0011,97410.0,97409.0,0.00022428]
[1738788999295,0.0011,97410.0,97409.0,0.15421328]
[1738788999978,0.0011,97410.0,97409.0,0.00022428]
[1738789000178,0.0012069,97410.0,97409.0,0.00022428]
[1738789001651,0.0012069,97410.0,97409.0,0.15421328]
[1738789002895,0.0012069,97410.0,97409.0,0.15523983]
[1738789003117,0.0012069,97410.0,97409.0,0.23043983]
[1738789003324,0.0012069,97410.0,97409.0,0.22941328]
[1738789005787,0.0012069,97410.0,97409.0,0.15421328]
[1738789008344,0.0012069,97410.0,97409.0,0.25774345]
[1738789008518,0.0012069,97410.0,97409.0,0.53511693]
[1738789008879,0.0012069,97410.0,97409.0,0.56707583]
[1738789011672,0.0012069,97410.0,97409.0,0.57760338]
[1738789012102,0.0012069,97410.0,97409.0,0.54564448]
[1738789013653,0.0012069,97410.0,97409.0,0.38551328]
[1738789014734,0.0012069,97410.0,97409.0,0.48801693]
[1738789014938,0.0012069,97410.0,97409.0,0.53551693]
[1738789020502,9e-07,97410.0,97409.0,0.55851693]
[1738789020698,0.0001068,97413.0,97409.0,0.55851693]
[1738789020699,7e-07,97413.0,97412.0,0.385485]
[1738789020904,7e-07,97413.0,97412.0,0.63608527]
[1738789021084,7e-07,97413.0,97412.0,0.66796283]
[1738789022148,7e-07,97413.0,97412.0,0.71526283]
[1738789022372,7e-07,97413.0,97412.0,0.72526283]
[1738789023276,0.0001068,97458.0,97451.0,0.153923]
[1738789023480,0.0001068,97458.0,97451.0,0.38152327]
[1738789023728,0.0001068,97458.0,97457.0,0.303914]
[1738789023898,0.0001068,97458.0,97457.0,0.48271765]
[1738789025087,0.0001068,97458.0,97457.0,0.303914]
[1738789025752,0.0001068,97458.0,97457.0,0.153914]
[1738789027033,0.0015068,97458.0,97457.0,0.153914]
[1738789027677,0.0015068,97458.0,97451.0,0.1460509]
[1738789027878,0.0015068,97458.0,97441.0,0.12509662]
[1738789028038,0.0784068,97458.0,97442.0,0.20525]
[1738789028240,0.0015068,97458.0,97456.0,0.153914]
[1738789028790,0.0015068,97458.0,97457.0,0.153914]
[1738789030965,0.0015068,97458.0,97451.0,0.12509662]
[1738789031190,0.0015068,97458.0,97452.0,0.153921]
[1738789031681,0.1554198,97458.0,97451.0,0.12509662]
[1738789032115,0.1554198,97458.0,97451.0,0.27901962]
[1738789032312,0.0015068,97458.0,97452.0,0.205229]
[1738789032515,0.0015068,97458.0,97457.0,0.153914]
[1738789032713,0.0015068,97458.0,97454.0,0.205223]
[1738789032912,0.0015068,97458.0,97457.0,0.153914]
[1738789034000,0.0015068,97458.0,97457.0,0.25641765]
[1738789034226,0.0015068,97458.0,97457.0,0.27553592]
[1738789034732,0.0015068,97458.0,97457.0,0.50223592]
[1738789034932,0.0015068,97458.0,97457.0,0.57473592]
[1738789036508,0.0058841,97465.0,97464.0,0.303902]
[1738789036751,0.0058841,97465.0,97464.0,0.53150227]
[1738789038670,0.0058841,97465.0,97464.0,0.55062054]
[1738789038874,0.0058841,97465.0,97464.0,0.29811689]
[1738789040355,0.0058841,97465.0,97464.0,0.40062054]
[1738789040715,0.1441868,97487.0,97475.0,0.153884]
[1738789041184,0.0496,97498.0,97476.0,0.01911827]
[1738789041460,0.0496,97498.0,97476.0,0.12264776]
[1738789041811,0.0496,97498.0,97488.0,0.153864]
[1738789042088,0.153853,97496.0,97487.0,0.153865]
[1738789042228,0.153855,97495.0,97485.0,0.27896562]
[1738789042428,0.0496,97498.0,97485.0,0.12509662]
[1738789042671,0.153853,97496.0,97487.0,0.153865]
[1738789042890,0.153858,97493.0,97485.0,0.12509662]
[1738789043090,0.0496,97498.0,97485.0,0.12509662]
[1738789043455,0.153864,97489.0,97485.0,0.12509662]
[1738789044099,0.153867,97487.0,97478.0,0.15388]
[1738789044234,0.0496,97498.0,97471.0,0.15]
[1738789044430,0.0496,97498.0,97471.0,0.25250365]
[1738789044663,0.153869,97485.0,97474.0,0.205182]
[1738789044911,0.153869,97485.0,97471.0,0.25250365]
[1738789044912,0.0496,97498.0,97470.0,0.12509662]
[1738789045090,0.0826,97490.0,97475.0,0.01911461]
[1738789045497,0.0826,97490.0,97476.0,0.153884]
[1738789045883,0.153869,97486.0,97477.0,0.153882]
[1738789046501,0.0826,97490.0,97474.0,0.12509662]
[1738789046700,0.0072463,97491.0,97474.0,0.12509662]
[1738789046701,0.0072463,97491.0,97481.0,0.153875]
[1738789046902,0.1611073,97491.0,97483.0,0.153872]
[1738789047510,0.205149,97490.0,97474.0,0.12509662]
[1738789047732,0.205149,97490.0,97461.0,0.28720704]
[1738789047733,0.0072463,97491.0,97465.0,0.205201]
[1738789047932,0.0072463,97491.0,97467.0,0.205197]
[1738789047933,0.153871,97485.0,97467.0,0.205197]
[1738789048135,0.153871,97484.0,97467.0,0.10250365]
[1738789048352,0.153865,97488.0,97480.0,0.153877]
[1738789048552,0.2123943,97491.0,97467.0,0.10250365]
[1738789048553,0.0072463,97491.0,97478.0,0.15388]
[1738789048758,0.205151,97489.0,97478.0,0.15388]
[1738789048912,0.00764477,97487.0,97480.0,0.205169]
[1738789049285,0.00764477,97487.0,97485.0,0.153868]
[1738789050072,0.00764477,97487.0,97486.0,0.01914124]
[1738789050428,0.153865,97488.0,97486.0,0.01914124]
[1738789050742,0.153866,97487.0,97486.0,0.01914124]
[1738789050937,0.153866,97487.0,97478.0,0.01914124]
[1738789051375,0.153863,97489.0,97481.0,0.153875]
[1738789051577,0.153863,97489.0,97482.0,0.153873]
[1738789051774,0.15387,97485.0,97478.0,0.17302024]
[1738789051978,0.15387,97485.0,97482.0,0.01914124]
[1738789052214,0.0072463,97491.0,97482.0,0.01914124]
[1738789052421,0.205149,97490.0,97482.0,0.01914124]
[1738789052616,0.153868,97486.0,97482.0,0.01914124]
[1738789052798,0.153867,97487.0,97482.0,0.01914124]
[1738789053200,0.153872,97484.0,97482.0,0.01914124]
[1738789053619,0.153872,97483.0,97482.0,0.01914124]
[1738789054027,0.0791,97483.0,97463.0,0.12509662]
[1738789054204,0.205176,97478.0,97463.0,0.12509662]
[1738789054403,0.153902,97464.0,97463.0,0.12509662]
[1738789055021,0.153902,97464.0,97457.0,0.00022428]
[1738789055022,0.205189,97471.0,97457.0,0.00022428]
[1738789055226,0.153912,97458.0,97457.0,0.00022428]
[1738789058524,0.16155874,97458.0,97457.0,0.00022428]
[1738789060452,0.00764674,97458.0,97457.0,0.00022428]
[1738789060607,0.00764674,97458.0,97457.0,0.15413828]
[1738789061255,0.00764674,97458.0,97457.0,0.15523828]
[1738789061478,0.00764674,97458.0,97457.0,0.00132428]
[1738789062063,0.153912,97458.0,97457.0,0.00132428]
[1738789063113,0.16155874,97458.0,97457.0,0.00132428]
[1738789066270,0.153912,97458.0,97457.0,0.00132428]
[1738789066481,0.01036252,97470.0,97457.0,0.00132428]
[1738789066685,0.10250365,97469.0,97457.0,0.00132428]
[1738789066918,0.153912,97458.0,97457.0,0.00132428]
[1738789069140,0.26405801,97458.0,97457.0,0.00132428]
[1738789069846,0.32567801,97458.0,97457.0,0.00132428]
[1738789070023,0.45277801,97458.0,97457.0,0.00132428]
[1738789070222,0.72047677,97458.0,97457.0,2.8e-07]
[1738789070374,0.72047677,97458.0,97405.0,0.0814]
[1738789070375,0.153972,97420.0,97405.0,0.0814]
[1738789070586,0.153972,97420.0,97409.0,0.15421328]
[1738789070791,0.205294,97422.0,97409.0,0.15421328]
[1738789070792,0.14159344,97429.0,97409.0,0.00022428]
[1738789070963,0.153979,97416.0,97410.0,0.153988]
[1738789071159,0.205302,97418.0,97410.0,0.153988]
[1738789071359,0.205295,97421.0,97409.0,0.00022428]
[1738789071567,0.205295,97421.0,97411.0,0.153986]
[1738789071767,0.153977,97417.0,97411.0,0.153986]
[1738789071970,0.205281,97427.0,97411.0,0.153986]
[1738789072176,0.153981,97415.0,97409.0,0.00022428]
[1738789072489,0.153983,97414.0,97409.0,0.00022428]
[1738789072968,0.153988,97410.0,97409.0,0.00022428]
[1738789073170,0.205308,97415.0,97409.0,0.00022428]
[1738789073171,0.153985,97413.0,97409.0,0.00022428]
[1738789073372,0.049,97439.0,97409.0,0.00022428]